Workbook

Sheet Buchungen
A1: Einnahmen & Ausgaben – Buchungen
A2: Jahr | B2: 2026 | D2: Währung | E2: EUR (€)
A5: Datum | B5: Kategorie | C5: Beschreibung | D5: Einnahme (€) | E5: Ausgabe (€) | F5: Monat | G5: Jahr | I5: Kategorien
A6: 2026-01-03 | B6: Gehalt | C6: Gehalt Januar | D6: € 2,800.00 | E6: € 0.00 | F6: =IF(A6="","",TEXT(A6,"yyyy-mm")) -> yyyy-01 | G6: =IF(A6="","",YEAR(A6)) -> 2026 | I6: Gehalt
A7: 2026-01-05 | B7: Miete | C7: Wohnungsmiete | D7: € 0.00 | E7: € 950.00 | F7: yyyy-01 | G7: 2026 | I7: Verkauf
A8: 2026-01-09 | B8: Strom | C8: Stromabschlag | D8: € 0.00 | E8: € 75.00 | F8: yyyy-01 | G8: 2026 | I8: Honorar
A9: 2026-01-15 | B9: Internet/Telefon | C9: Internet | D9: € 0.00 | E9: € 45.00 | F9: yyyy-01 | G9: 2026 | I9: Erstattung
A10: 2026-01-20 | B10: Reisekosten | C10: Bahnfahrt | D10: € 0.00 | E10: € 39.90 | F10: yyyy-01 | G10: 2026 | I10: Zinsen
A11: 2026-02-03 | B11: Gehalt | C11: Gehalt Februar | D11: € 2,800.00 | E11: € 0.00 | F11: yyyy-02 | G11: 2026 | I11: Sonstiges Einkommen
A12: 2026-02-05 | B12: Miete | C12: Wohnungsmiete | D12: € 0.00 | E12: € 950.00 | F12: yyyy-02 | G12: 2026 | I12: Miete
A13: 2026-02-11 | B13: Software | C13: Abo | D13: € 0.00 | E13: € 15.00 | F13: yyyy-02 | G13: 2026 | I13: Strom
A14: 2026-02-18 | B14: Marketing | C14: Ads Test | D14: € 0.00 | E14: € 60.00 | F14: yyyy-02 | G14: 2026 | I14: Internet/Telefon
A15: 2026-02-25 | B15: Erstattung | C15: Reisekosten Erstattung | D15: € 45.00 | E15: € 0.00 | F15: yyyy-02 | G15: 2026 | I15: Software
A16: 2026-03-03 | B16: Gehalt | C16: Gehalt März | D16: € 2,800.00 | E16: € 0.00 | F16: yyyy-03 | G16: 2026 | I16: Bürobedarf
A17: 2026-03-05 | B17: Miete | C17: Wohnungsmiete | D17: € 0.00 | E17: € 950.00 | F17: yyyy-03 | G17: 2026 | I17: Marketing
A18: 2026-03-08 | B18: Bürobedarf | C18: Notizbuch & Stifte | D18: € 0.00 | E18: € 18.50 | F18: yyyy-03 | G18: 2026 | I18: Reisekosten
A19: 2026-03-12 | B19: Honorar | C19: Freelance Projekt | D19: € 450.00 | E19: € 0.00 | F19: yyyy-03 | G19: 2026 | I19: Versicherungen
A20: 2026-03-22 | B20: Versicherungen | C20: Haftpflicht | D20: € 0.00 | E20: € 12.90 | F20: yyyy-03 | G20: 2026 | I20: Steuern
A21: 2026-04-03 | B21: Gehalt | C21: Gehalt April | D21: € 2,800.00 | E21: € 0.00 | F21: yyyy-04 | G21: 2026 | I21: Bewirtung
A22: 2026-04-05 | B22: Miete | C22: Wohnungsmiete | D22: € 0.00 | E22: € 950.00 | F22: yyyy-04 | G22: 2026 | I22: Gebühren
A23: 2026-04-10 | B23: Reisekosten | C23: Hotel | D23: € 0.00 | E23: € 120.00 | F23: yyyy-04 | G23: 2026 | I23: Wartung
A24: 2026-04-18 | B24: Verkauf | C24: Kleinanzeigen | D24: € 80.00 | E24: € 0.00 | F24: yyyy-04 | G24: 2026 | I24: Sonstiges
A25: 2026-04-27 | B25: Steuern | C25: Vorauszahlung | D25: € 0.00 | E25: € 150.00 | F25: yyyy-04 | G25: 2026
A26: 2026-05-03 | B26: Gehalt | C26: Gehalt Mai | D26: € 2,800.00 | E26: € 0.00 | F26: yyyy-05 | G26: 2026
A27: 2026-05-05 | B27: Miete | C27: Wohnungsmiete | D27: € 0.00 | E27: € 950.00 | F27: yyyy-05 | G27: 2026
A28: 2026-05-14 | B28: Gebühren | C28: Bankgebühr | D28: € 0.00 | E28: € 6.50 | F28: yyyy-05 | G28: 2026
A29: 2026-05-21 | B29: Bewirtung | C29: Kundentermin | D29: € 0.00 | E29: € 34.20 | F29: yyyy-05 | G29: 2026
A30: 2026-05-29 | B30: Zinsen | C30: Zinsen | D30: € 2.35 | E30: € 0.00 | F30: yyyy-05 | G30: 2026
A31: 2026-06-03 | B31: Gehalt | C31: Gehalt Juni | D31: € 2,800.00 | E31: € 0.00 | F31: yyyy-06 | G31: 2026
A32: 2026-06-05 | B32: Miete | C32: Wohnungsmiete | D32: € 0.00 | E32: € 950.00 | F32: yyyy-06 | G32: 2026
A33: 2026-06-09 | B33: Wartung | C33: Fahrrad Service | D33: € 0.00 | E33: € 45.00 | F33: yyyy-06 | G33: 2026
A34: 2026-06-16 | B34: Sonstiges Einkommen | C34: Bonus | D34: € 120.00 | E34: € 0.00 | F34: yyyy-06 | G34: 2026
A35: 2026-06-25 | B35: Marketing | C35: Tool | D35: € 0.00 | E35: € 25.00 | F35: yyyy-06 | G35: 2026
F70: =IF(A70="","",TEXT(A70,"yyyy-mm")) ->  | G70: =IF(A70="","",YEAR(A70)) -> 
F134: =IF(A134="","",TEXT(A134,"yyyy-mm")) ->  | G134: =IF(A134="","",YEAR(A134)) -> 
F198: =IF(A198="","",TEXT(A198,"yyyy-mm")) ->  | G198: =IF(A198="","",YEAR(A198)) -> 
F262: =IF(A262="","",TEXT(A262,"yyyy-mm")) ->  | G262: =IF(A262="","",YEAR(A262)) -> 
F326: =IF(A326="","",TEXT(A326,"yyyy-mm")) ->  | G326: =IF(A326="","",YEAR(A326)) -> 
F390: =IF(A390="","",TEXT(A390,"yyyy-mm")) ->  | G390: =IF(A390="","",YEAR(A390)) -> 
F454: =IF(A454="","",TEXT(A454,"yyyy-mm")) ->  | G454: =IF(A454="","",YEAR(A454)) -> 

Sheet Übersicht
A1: Übersicht – Jahr
A2: Jahr auswählen | B2: =Buchungen!B2 -> 2026 | C2: Gesamteinnahmen | E2: Gesamtausgaben | G2: Saldo
C3: =SUMIFS(Buchungen!$D$6:$D$500,Buchungen!$A$6:$A$500,">="&DATE($B$2,1,1),Buchungen!$A$6:$A$500,"<"&DATE($B$2+1,1,1)) -> € 17,497.35 | E3: =SUMIFS(Buchungen!$E$6:$E$500,Buchungen!$A$6:$A$500,">="&DATE($B$2,1,1),Buchungen!$A$6:$A$500,"<"&DATE($B$2+1,1,1)) -> € 6,347.00 | G3: =C3-E3 -> € 11,150.35
A6: Monat | B6: Einnahmen (€) | C6: Ausgaben (€) | D6: Saldo (€) | E6: Kumuliert (€)
A7: Jan | B7: =SUMIFS(Buchungen!$D$6:$D$500,Buchungen!$A$6:$A$500,">="&$F7,Buchungen!$A$6:$A$500,"<"&$G7) -> € 2,800.00 | C7: =SUMIFS(Buchungen!$E$6:$E$500,Buchungen!$A$6:$A$500,">="&$F7,Buchungen!$A$6:$A$500,"<"&$G7) -> € 1,109.90 | D7: =B7-C7 -> € 1,690.10 | E7: =D7 -> € 1,690.10 | F7: =DATE($B$2,1,1) -> 2026-01-01 | G7: =EDATE(F7,1) -> 2026-02-01
A8: Feb | B8: =SUMIFS(Buchungen!$D$6:$D$500,Buchungen!$A$6:$A$500,">="&$F8,Buchungen!$A$6:$A$500,"<"&$G8) -> € 2,845.00 | C8: =SUMIFS(Buchungen!$E$6:$E$500,Buchungen!$A$6:$A$500,">="&$F8,Buchungen!$A$6:$A$500,"<"&$G8) -> € 1,025.00 | D8: € 1,820.00 | E8: =E7+D8 -> € 3,510.10 | F8: =DATE($B$2,2,1) -> 2026-02-01 | G8: 2026-03-01
A9: Mär | B9: =SUMIFS(Buchungen!$D$6:$D$500,Buchungen!$A$6:$A$500,">="&$F9,Buchungen!$A$6:$A$500,"<"&$G9) -> € 3,250.00 | C9: =SUMIFS(Buchungen!$E$6:$E$500,Buchungen!$A$6:$A$500,">="&$F9,Buchungen!$A$6:$A$500,"<"&$G9) -> € 981.40 | D9: € 2,268.60 | E9: € 5,778.70 | F9: =DATE($B$2,3,1) -> 2026-03-01 | G9: 2026-04-01
A10: Apr | B10: =SUMIFS(Buchungen!$D$6:$D$500,Buchungen!$A$6:$A$500,">="&$F10,Buchungen!$A$6:$A$500,"<"&$G10) -> € 2,880.00 | C10: =SUMIFS(Buchungen!$E$6:$E$500,Buchungen!$A$6:$A$500,">="&$F10,Buchungen!$A$6:$A$500,"<"&$G10) -> € 1,220.00 | D10: € 1,660.00 | E10: € 7,438.70 | F10: =DATE($B$2,4,1) -> 2026-04-01 | G10: 2026-05-01
A11: Mai | B11: =SUMIFS(Buchungen!$D$6:$D$500,Buchungen!$A$6:$A$500,">="&$F11,Buchungen!$A$6:$A$500,"<"&$G11) -> € 2,802.35 | C11: =SUMIFS(Buchungen!$E$6:$E$500,Buchungen!$A$6:$A$500,">="&$F11,Buchungen!$A$6:$A$500,"<"&$G11) -> € 990.70 | D11: € 1,811.65 | E11: € 9,250.35 | F11: =DATE($B$2,5,1) -> 2026-05-01 | G11: 2026-06-01
A12: Jun | B12: =SUMIFS(Buchungen!$D$6:$D$500,Buchungen!$A$6:$A$500,">="&$F12,Buchungen!$A$6:$A$500,"<"&$G12) -> € 2,920.00 | C12: =SUMIFS(Buchungen!$E$6:$E$500,Buchungen!$A$6:$A$500,">="&$F12,Buchungen!$A$6:$A$500,"<"&$G12) -> € 1,020.00 | D12: € 1,900.00 | E12: € 11,150.35 | F12: =DATE($B$2,6,1) -> 2026-06-01 | G12: 2026-07-01
A13: Jul | B13: =SUMIFS(Buchungen!$D$6:$D$500,Buchungen!$A$6:$A$500,">="&$F13,Buchungen!$A$6:$A$500,"<"&$G13) -> € 0.00 | C13: =SUMIFS(Buchungen!$E$6:$E$500,Buchungen!$A$6:$A$500,">="&$F13,Buchungen!$A$6:$A$500,"<"&$G13) -> € 0.00 | D13: € 0.00 | E13: € 11,150.35 | F13: =DATE($B$2,7,1) -> 2026-07-01 | G13: 2026-08-01
A14: Aug | B14: =SUMIFS(Buchungen!$D$6:$D$500,Buchungen!$A$6:$A$500,">="&$F14,Buchungen!$A$6:$A$500,"<"&$G14) -> € 0.00 | C14: =SUMIFS(Buchungen!$E$6:$E$500,Buchungen!$A$6:$A$500,">="&$F14,Buchungen!$A$6:$A$500,"<"&$G14) -> € 0.00 | D14: € 0.00 | E14: € 11,150.35 | F14: =DATE($B$2,8,1) -> 2026-08-01 | G14: 2026-09-01
A15: Sep | B15: =SUMIFS(Buchungen!$D$6:$D$500,Buchungen!$A$6:$A$500,">="&$F15,Buchungen!$A$6:$A$500,"<"&$G15) -> € 0.00 | C15: =SUMIFS(Buchungen!$E$6:$E$500,Buchungen!$A$6:$A$500,">="&$F15,Buchungen!$A$6:$A$500,"<"&$G15) -> € 0.00 | D15: € 0.00 | E15: € 11,150.35 | F15: =DATE($B$2,9,1) -> 2026-09-01 | G15: 2026-10-01
A16: Okt | B16: =SUMIFS(Buchungen!$D$6:$D$500,Buchungen!$A$6:$A$500,">="&$F16,Buchungen!$A$6:$A$500,"<"&$G16) -> € 0.00 | C16: =SUMIFS(Buchungen!$E$6:$E$500,Buchungen!$A$6:$A$500,">="&$F16,Buchungen!$A$6:$A$500,"<"&$G16) -> € 0.00 | D16: € 0.00 | E16: € 11,150.35 | F16: =DATE($B$2,10,1) -> 2026-10-01 | G16: 2026-11-01
A17: Nov | B17: =SUMIFS(Buchungen!$D$6:$D$500,Buchungen!$A$6:$A$500,">="&$F17,Buchungen!$A$6:$A$500,"<"&$G17) -> € 0.00 | C17: =SUMIFS(Buchungen!$E$6:$E$500,Buchungen!$A$6:$A$500,">="&$F17,Buchungen!$A$6:$A$500,"<"&$G17) -> € 0.00 | D17: € 0.00 | E17: € 11,150.35 | F17: =DATE($B$2,11,1) -> 2026-11-01 | G17: 2026-12-01
A18: Dez | B18: =SUMIFS(Buchungen!$D$6:$D$500,Buchungen!$A$6:$A$500,">="&$F18,Buchungen!$A$6:$A$500,"<"&$G18) -> € 0.00 | C18: =SUMIFS(Buchungen!$E$6:$E$500,Buchungen!$A$6:$A$500,">="&$F18,Buchungen!$A$6:$A$500,"<"&$G18) -> € 0.00 | D18: € 0.00 | E18: € 11,150.35 | F18: =DATE($B$2,12,1) -> 2026-12-01 | G18: 2027-01-01
A34: Hinweis: In 'Buchungen' eintragen – die Übersicht aktualisiert sich automatisch.
